bitfinex-derivatives/quotes_BTCF0:USTF0_20251002
["timestamp","ask_amount","ask_price","bid_price","bid_amount"]
[1759387182665,0.18879758,118660.0,118650.0,0.4409081]
[1759387182865,0.19479758,118660.0,118650.0,0.4409081]
[1759387183061,0.11056538,118660.0,118650.0,0.5251474]
[1759387183269,0.1299444,118700.0,118690.0,0.03568]
[1759387183463,0.1072438,118700.0,118690.0,0.05220348]
[1759387183667,0.12046134,118700.0,118690.0,0.05220348]
[1759387183869,0.90906873,118700.0,118690.0,0.05220348]
[1759387184267,0.97519258,118700.0,118690.0,0.05220348]
[1759387184873,0.58658519,118700.0,118690.0,0.05220348]
[1759387185867,0.97519258,118700.0,118690.0,0.01652348]
[1759387186473,1.74127258,118700.0,118690.0,0.01652348]
[1759387188571,0.107128,118680.0,118670.0,0.03454]
[1759387188772,1.65030278,118680.0,118670.0,0.03454]
[1759387189071,0.1071422,118660.0,118650.0,0.05116071]
[1759387189272,1.26198959,118660.0,118650.0,0.05116071]
[1759387190380,1.32942255,118660.0,118650.0,0.05116071]
[1759387191780,1.32942255,118660.0,118650.0,0.06016071]
[1759387191980,1.32942255,118660.0,118650.0,0.06916071]
[1759387193475,1.26198959,118660.0,118650.0,0.06916071]
[1759387193681,0.1071422,118660.0,118650.0,0.4577681]
[1759387193882,0.8730622,118660.0,118650.0,0.06916071]
[1759387194085,0.8730622,118660.0,118650.0,0.5420074]
[1759387194484,0.8730622,118660.0,118650.0,0.15340001]
[1759387194978,0.1071422,118660.0,118650.0,0.15340001]
[1759387195385,0.49574959,118660.0,118650.0,0.06916071]
[1759387195685,0.49574959,118660.0,118650.0,0.05637071]
[1759387196277,0.90346959,118660.0,118650.0,0.03462071]
[1759387196781,1.29207698,118660.0,118650.0,0.018]
[1759387197087,0.1071635,118630.0,118620.0,0.03467]
[1759387197289,1.26185089,118630.0,118620.0,0.03467]
[1759387198283,1.26185089,118630.0,118620.0,0.05267]
[1759387198581,1.26185089,118630.0,118620.0,0.06667]
[1759387198783,1.27396077,118630.0,118620.0,0.06667]
[1759387198984,1.27384077,118630.0,118620.0,0.06667]
[1759387199491,2.06244816,118630.0,118620.0,0.032]
[1759387200193,0.0842677,118610.0,118600.0,0.01027976]
[1759387200395,1.23907509,118610.0,118600.0,0.01027976]
[1759387201082,1.23913759,118610.0,118600.0,0.01027976]
[1759387201491,1.23913759,118610.0,118600.0,0.02319976]
[1759387201690,0.48093759,118610.0,118600.0,0.02319976]
[1759387201990,0.1023302,118610.0,118600.0,0.04494976]
[1759387202186,1.29079475,118610.0,118600.0,0.04494976]
[1759387202493,0.50663475,118610.0,118600.0,0.04494976]
[1759387202692,1.28579475,118610.0,118600.0,0.04494976]
[1759387203089,1.68579475,118610.0,118600.0,0.01027976]
[1759387203389,1.69791475,118610.0,118600.0,0.01027976]
[1759387203986,0.90663475,118610.0,118600.0,0.02319976]
[1759387204293,1.72991475,118610.0,118600.0,0.02519976]
[1759387204491,1.72991475,118610.0,118600.0,0.01227976]
[1759387204793,1.67291475,118610.0,118600.0,0.01027976]
[1759387204988,0.97263475,118610.0,118600.0,0.01327976]
[1759387205184,1.73891475,118610.0,118600.0,0.01327976]
[1759387206286,1.73887475,118610.0,118600.0,0.01327976]
[1759387207083,0.5503302,118610.0,118600.0,0.01327976]
[1759387207293,1.73887475,118610.0,118600.0,0.01327976]
[1759387209387,0.97263475,118610.0,118600.0,0.01327976]
[1759387209588,3.44863475,118610.0,118600.0,0.01327976]
[1759387209789,0.97263475,118610.0,118600.0,0.01327976]
[1759387209989,3.44867475,118610.0,118600.0,0.01327976]
[1759387210997,0.97263475,118610.0,118600.0,0.01327976]
[1759387211497,3.44863475,118610.0,118600.0,0.01327976]
[1759387214691,3.44863475,118610.0,118600.0,0.003]
[1759387214892,0.97263475,118610.0,118600.0,0.003]
[1759387215296,1.73851475,118610.0,118600.0,0.003]
[1759387215801,1.33851475,118610.0,118600.0,0.03767]
[1759387215993,1.33851475,118610.0,118600.0,0.05481604]
[1759387216696,0.57263475,118610.0,118600.0,0.05481604]
[1759387217096,1.33847475,118610.0,118600.0,0.05481604]
[1759387218099,0.9161702,118610.0,118600.0,0.03306604]
[1759387218302,1.33847475,118610.0,118600.0,0.03306604]
[1759387219802,0.9161702,118610.0,118600.0,0.03306604]
[1759387219997,1.33847475,118610.0,118600.0,0.03306604]
[1759387220197,1.40211165,118610.0,118600.0,0.03306604]
[1759387222305,1.69369504,118610.0,118600.0,0.03306604]
[1759387224107,1.69345504,118610.0,118600.0,0.05534604]
[1759387224307,1.71534865,118610.0,118600.0,0.05534604]
[1759387224702,1.71534865,118610.0,118600.0,0.03306604]
[1759387225695,0.93782381,118610.0,118600.0,0.03306604]
[1759387226007,1.71534865,118610.0,118600.0,0.03306604]
[1759387228402,1.73804925,118610.0,118600.0,0.03306604]
[1759387233007,1.73804925,118610.0,118600.0,0.003]
[1759387233711,1.76839769,118610.0,118600.0,0.003]
[1759387234411,1.74569709,118610.0,118600.0,0.003]
[1759387236215,0.0842748,118600.0,118590.0,0.01292]
[1759387236416,0.90645304,118600.0,118590.0,0.03533]
[1759387237613,0.91445304,118600.0,118590.0,0.03533]
[1759387238318,0.90645304,118600.0,118590.0,0.03533]
[1759387238512,0.91445304,118600.0,118590.0,0.03533]
[1759387239422,0.98163698,118600.0,118590.0,0.03533]
[1759387241825,1.74623698,118600.0,118590.0,0.03533]
[1759387242625,0.59287456,118600.0,118590.0,0.03533]
[1759387242821,0.94599235,118600.0,118590.0,0.90837432]
[1759387243120,0.18135235,118600.0,118590.0,1.29713674]
[1759387243420,0.52798191,118600.0,118590.0,1.00318626]
[1759387243620,0.91674433,118600.0,118590.0,0.61442384]
[1759387243823,0.84956039,118600.0,118590.0,1.00318626]
[1759387244124,0.84156039,118600.0,118590.0,1.00318626]
[1759387244314,0.84156039,118600.0,118590.0,1.00418626]
[1759387244711,0.45279797,118600.0,118590.0,1.00318626]
[1759387244918,0.45479797,118600.0,118590.0,0.61542384]
[1759387245119,0.45479797,118600.0,118590.0,1.00418626]
[1759387245618,0.45479797,118600.0,118590.0,1.00318626]
[1759387246317,0.45479797,118600.0,118590.0,1.06347791]
[1759387246824,0.45479797,118600.0,118590.0,1.00318626]
[1759387250928,0.45479797,118600.0,118590.0,0.61442384]
[1759387251133,0.45479797,118600.0,118590.0,1.00318626]
[1759387251726,0.002,118600.0,118590.0,1.00318626]
[1759387251925,0.76632,118600.0,118590.0,1.39194868]
[1759387252131,0.76628,118600.0,118590.0,1.39194868]
[1759387252628,0.76628,118600.0,118590.0,1.00318626]
[1759387253624,0.76624,118600.0,118590.0,1.00318626]
[1759387254027,0.002,118600.0,118590.0,1.00318626]
[1759387254528,0.0843347,118610.0,118590.0,1.00318626]
[1759387254529,6.25e-05,118610.0,118600.0,0.1187948]
[1759387254836,6.25e-05,118610.0,118600.0,1.4521373]
[1759387255022,0.10427639,118630.0,118620.0,0.89630544]
[1759387255217,0.51423639,118630.0,118620.0,0.91289233]
[1759387255926,0.90299881,118630.0,118620.0,0.52412991]
[1759387257227,0.90699881,118630.0,118620.0,0.13536749]
[1759387257532,0.90699881,118630.0,118620.0,0.52412991]
[1759387257922,0.90699881,118630.0,118620.0,0.05110689]
[1759387258127,0.90699881,118630.0,118620.0,0.43986931]
[1759387260025,0.90699881,118630.0,118620.0,0.05110689]
[1759387268837,0.86416698,118630.0,118620.0,0.91289223]
[1759387269138,1.2529294,118630.0,118620.0,0.43986931]
[1759387269633,0.10036698,118630.0,118620.0,0.43986931]
[1759387269937,0.86408698,118630.0,118620.0,0.43986931]
[1759387270136,1.2528494,118630.0,118620.0,0.43986931]
[1759387270435,0.86408698,118630.0,118620.0,0.43986931]
[1759387270629,0.01610988,118630.0,118620.0,1.46567847]
[1759387272029,0.01310988,118630.0,118620.0,1.46567847]
[1759387272229,0.09836318,118630.0,118620.0,1.46567847]
[1759387272435,0.09836318,118630.0,118620.0,0.68815363]
[1759387272632,0.09836318,118630.0,118620.0,0.60389323]
[1759387272825,0.09836318,118630.0,118620.0,1.38141807]
[1759387273536,0.09836318,118630.0,118620.0,1.32107218]
[1759387273731,0.4871256,118630.0,118620.0,0.14354734]
[1759387274139,0.09836318,118630.0,118620.0,0.92107218]
[1759387274641,0.09836318,118630.0,118620.0,0.14354734]
[1759387274836,0.09836318,118630.0,118620.0,0.53230976]
[1759387275038,0.4871256,118630.0,118620.0,0.53230976]
[1759387275425,0.4871256,118630.0,118620.0,0.14354734]
[1759387275630,0.09836318,118630.0,118620.0,0.92107218]
[1759387276534,0.09836318,118630.0,118620.0,1.00533258]
[1759387276930,0.09836318,118630.0,118620.0,1.06567847]
[1759387277133,0.09836318,118630.0,118620.0,0.28815363]
[1759387277338,0.002,118630.0,118620.0,1.40533258]
[1759387277534,0.002,118630.0,118620.0,1.46567847]
[1759387277837,0.0862533,118630.0,118620.0,1.38141807]
[1759387278637,0.09820227,118630.0,118620.0,1.32107218]
[1759387278839,0.09820227,118630.0,118620.0,1.38141807]
[1759387279140,0.09820227,118630.0,118620.0,1.46567847]
[1759387280241,0.09820227,118630.0,118620.0,1.01625156]
[1759387281035,0.09820227,118630.0,118620.0,1.07659745]
[1759387281645,0.0862533,118630.0,118620.0,1.46504127]
[1759387281839,0.09803588,118630.0,118620.0,1.07659745]
[1759387282643,0.0862533,118630.0,118620.0,0.68815363]
[1759387282943,0.0862533,118630.0,118620.0,1.07659745]
[1759387284043,0.0862533,118630.0,118620.0,0.68815363]
[1759387284350,0.0862533,118630.0,118620.0,1.07659745]
[1759387286545,0.002,118630.0,118620.0,0.68815363]
[1759387286850,0.0862533,118630.0,118620.0,1.46504127]
[1759387287241,0.0862533,118630.0,118620.0,1.07659745]
[1759387287744,0.0862533,118630.0,118620.0,0.99233705]
[1759387287946,0.0862533,118630.0,118620.0,0.60389323]
[1759387288150,0.0862533,118630.0,118620.0,0.59233705]
[1759387288843,0.0862533,118630.0,118620.0,0.20389323]
[1759387289150,0.0862533,118630.0,118620.0,0.59233705]
[1759387290454,0.0862533,118630.0,118620.0,0.20389323]
[1759387290645,0.0862533,118630.0,118620.0,0.59233705]
[1759387291046,0.0862533,118630.0,118620.0,0.67659745]
[1759387291954,0.0862533,118630.0,118620.0,0.59233705]
[1759387295249,0.0862533,118630.0,118620.0,0.67659745]
[1759387296645,0.0862533,118630.0,118620.0,0.28815363]
[1759387296858,0.0862533,118630.0,118620.0,0.67659745]
[1759387297356,0.0862533,118630.0,118620.0,0.61625156]
[1759387298057,0.0862533,118630.0,118620.0,0.53199116]
[1759387298255,0.0862533,118630.0,118620.0,0.14354734]
[1759387298456,0.0862533,118630.0,118620.0,0.53199116]
[1759387301960,0.0862533,118630.0,118620.0,0.22780774]
[1759387302154,0.0862533,118630.0,118620.0,0.61625156]
[1759387302357,0.0862533,118630.0,118620.0,0.53199116]
[1759387307163,0.002,118630.0,118620.0,0.61625166]
[1759387307464,0.002,118630.0,118620.0,1.00469548]
[1759387307465,0.0862534,118630.0,118620.0,1.00469548]
[1759387307863,0.0862534,118630.0,118620.0,0.61625166]
[1759387309466,0.002,118630.0,118620.0,0.61625166]
[1759387309867,0.002,118630.0,118620.0,1.00469548]
[1759387310067,0.0862533,118630.0,118620.0,1.00469548]
[1759387310268,0.0862533,118630.0,118620.0,0.53199116]
[1759387311566,0.0862533,118630.0,118620.0,0.60764141]
[1759387311967,0.0862533,118630.0,118620.0,0.69190181]
[1759387314770,0.0862533,118630.0,118620.0,0.61625156]
[1759387317071,0.0862533,118630.0,118620.0,0.69190181]
[1759387317370,0.0862533,118630.0,118620.0,0.30345799]
[1759387317572,0.0862533,118630.0,118620.0,0.61625156]
[1759387318567,0.002,118630.0,118620.0,0.61625156]
[1759387318776,0.09598367,118640.0,118630.0,0.1207633]
[1759387319076,0.0842519,118640.0,118630.0,0.67577764]
[1759387319673,0.0842519,118640.0,118630.0,0.60026122]
[1759387319865,0.10003084,118650.0,118640.0,0.1207562]
[1759387320070,0.10003084,118650.0,118640.0,0.56959884]
[1759387320470,0.01578484,118650.0,118640.0,0.67820864]
[1759387320675,0.10002394,118650.0,118640.0,0.67820864]
[1759387321076,0.10002394,118650.0,118640.0,0.60269222]
[1759387321375,0.10602394,118650.0,118640.0,0.60269222]
[1759387321575,0.11202394,118650.0,118640.0,0.60269222]
[1759387322376,0.11202394,118650.0,118640.0,0.66300877]
[1759387323078,0.02778484,118650.0,118640.0,0.66300877]
[1759387323778,0.02778484,118650.0,118640.0,0.60269222]
[1759387324379,0.02778484,118650.0,118640.0,0.66298595]
[1759387325079,0.02778484,118650.0,118640.0,0.27454213]
[1759387325269,0.02778484,118650.0,118640.0,0.66298595]
[1759387325669,0.0164,118650.0,118640.0,0.747271]
[1759387325872,0.0164,118650.0,118640.0,0.68697727]
[1759387326273,0.0164,118650.0,118640.0,1.47542109]
[1759387326473,0.0842309,118670.0,118660.0,0.13774612]
[1759387326673,0.0842309,118670.0,118660.0,0.19798962]
[1759387326878,0.2328993,118680.0,118670.0,0.03651]
[1759387327073,0.2328993,118680.0,118670.0,0.42495382]
[1759387327481,0.24424783,118680.0,118670.0,0.42495382]
[1759387327987,0.25024783,118680.0,118670.0,0.42495382]
[1759387328383,0.24424783,118680.0,118670.0,0.42495382]
[1759387330188,0.24424783,118680.0,118670.0,0.03651]
[1759387331481,0.01134853,118680.0,118670.0,0.03651]
[1759387331678,0.05302748,118720.0,118680.0,0.01349]
[1759387331679,0.0842128,118690.0,118680.0,0.01349]
[1759387331879,0.0842128,118690.0,118680.0,0.42495382]
[1759387332384,0.49532298,118690.0,118680.0,0.42495382]
[1759387333092,0.49532298,118690.0,118680.0,0.03651]
[1759387333389,0.49832298,118690.0,118680.0,0.42495382]
[1759387333689,0.49832298,118690.0,118680.0,0.03651]
[1759387333989,0.49532298,118690.0,118680.0,0.03651]
[1759387334189,0.49832298,118690.0,118680.0,0.03651]
[1759387334589,0.8867668,118690.0,118680.0,0.03651]
[1759387335190,0.49832298,118690.0,118680.0,0.03651]
[1759387335486,0.56418957,118690.0,118680.0,0.03651]
[1759387336192,0.95263339,118690.0,118680.0,0.03651]
[1759387336586,0.56418957,118690.0,118680.0,0.03651]
[1759387339387,0.55263339,118690.0,118680.0,0.03651]
[1759387339591,0.95263339,118690.0,118680.0,0.03651]
[1759387339786,0.56418957,118690.0,118680.0,0.03651]
[1759387340388,0.95263339,118690.0,118680.0,0.03651]
[1759387341091,0.56418957,118690.0,118680.0,0.03651]
[1759387341292,0.95263339,118690.0,118680.0,0.03651]
[1759387341991,0.56418957,118690.0,118680.0,0.03651]
[1759387342193,0.95234593,118690.0,118680.0,0.03651]
[1759387346898,1.71442593,118690.0,118680.0,0.03651]
[1759387347198,1.71442593,118690.0,118680.0,0.42466636]
[1759387347395,1.71442593,118690.0,118680.0,0.03651]
[1759387348396,1.71442593,118690.0,118680.0,0.42466636]
[1759387348988,1.32626957,118690.0,118680.0,0.42466636]
[1759387349186,1.32626957,118690.0,118680.0,0.03651]
[1759387349391,1.71442593,118690.0,118680.0,0.42466636]
[1759387349691,1.32626957,118690.0,118680.0,0.42466636]
[1759387349897,1.71442593,118690.0,118680.0,0.42466636]
[1759387352288,1.71442593,118690.0,118680.0,0.03651]
[1759387352495,1.32626957,118690.0,118680.0,0.42466636]
[1759387352793,1.71442593,118690.0,118680.0,0.42466636]
[1759387355603,1.71438593,118690.0,118680.0,0.50888406]
[1759387355803,1.32622957,118690.0,118680.0,0.42466636]
[1759387356005,1.71438593,118690.0,118680.0,0.42466636]
[1759387356604,1.32622957,118690.0,118680.0,0.42466636]
[1759387356804,1.71438593,118690.0,118680.0,0.42466636]
[1759387357107,1.71438593,118690.0,118680.0,0.03651]
[1759387357313,1.71438593,118690.0,118680.0,0.42466636]
[1759387358209,0.56418957,118690.0,118680.0,0.42466636]
[1759387358415,1.31438593,118690.0,118680.0,0.42466636]
[1759387361516,1.33591805,118690.0,118680.0,0.50888406]
[1759387361815,1.33591805,118690.0,118680.0,0.1207277]
[1759387362016,0.57387805,118690.0,118680.0,0.50888406]
[1759387362212,0.94776169,118690.0,118680.0,0.50888406]
[1759387362620,0.94776169,118690.0,118680.0,0.1207277]
[1759387362818,0.94776169,118690.0,118680.0,0.50888406]
[1759387363420,0.86354889,118690.0,118680.0,0.89704042]
[1759387363615,0.86354889,118690.0,118680.0,0.1207277]
[1759387363813,0.83190761,118690.0,118680.0,0.95728392]
[1759387364016,0.83190761,118690.0,118680.0,1.35728392]
[1759387364220,0.83190761,118690.0,118680.0,1.44614274]
[1759387365319,0.76604102,118690.0,118680.0,1.44614274]
[1759387365813,0.76604102,118690.0,118680.0,1.38589924]
[1759387366114,0.76604102,118690.0,118680.0,1.44626365]
[1759387367112,0.00400102,118690.0,118680.0,1.44626365]
[1759387367317,0.00400102,118690.0,118680.0,1.38589924]
[1759387367518,0.76204,118700.0,118690.0,0.1212206]
[1759387367711,0.0661451,118710.0,118690.0,0.1212206]
[1759387367712,0.9130615,118710.0,118700.0,0.1212135]
[1759387367918,1.23507276,118710.0,118700.0,0.03701]
[1759387368123,0.8469164,118710.0,118700.0,0.03701]
[1759387368324,1.23507276,118710.0,118700.0,0.03701]
[1759387368522,1.23507276,118710.0,118700.0,0.42516636]
[1759387369030,1.24007276,118710.0,118700.0,0.42516636]
[1759387369323,0.005,118710.0,118700.0,1.28568238]
[1759387369622,0.2069059,118730.0,118720.0,0.03478]
[1759387369823,0.2069059,118730.0,118720.0,0.43965048]
[1759387370223,0.2069059,118730.0,118720.0,0.82780684]
[1759387371020,0.2069059,118730.0,118720.0,0.44065048]
[1759387371528,0.2069059,118730.0,118720.0,0.05249412]
[1759387371828,0.27573343,118730.0,118720.0,0.44065048]
[1759387372031,0.27673343,118730.0,118720.0,0.43965048]
[1759387372218,0.28807199,118730.0,118720.0,0.43965048]
[1759387372933,0.28807199,118730.0,118720.0,0.05149412]
[1759387373126,0.28807199,118730.0,118720.0,0.43965048]
[1759387374421,0.28807199,118730.0,118720.0,0.82780684]
[1759387375033,0.28807199,118730.0,118720.0,0.05149412]
[1759387375427,0.67622835,118730.0,118720.0,0.05149412]
[1759387377931,0.28807199,118730.0,118720.0,0.05149412]
[1759387378125,0.67622835,118730.0,118720.0,0.05149412]
[1759387378930,0.0841962,118710.0,118700.0,0.09541784]
[1759387379231,0.0841962,118710.0,118700.0,0.03513]
[1759387379232,0.8469962,118710.0,118700.0,0.03513]
[1759387379531,1.23515256,118710.0,118700.0,0.42328636]
[1759387379931,0.0841941,118720.0,118710.0,0.03478]
[1759387380129,1.23535046,118720.0,118710.0,0.03478]
[1759387380333,0.47235046,118720.0,118710.0,0.42293636]
[1759387380639,1.23531046,118720.0,118710.0,0.42293636]
[1759387381132,1.24031046,118720.0,118710.0,0.42293636]
[1759387381339,1.24031046,118720.0,118710.0,0.03478]
[1759387381825,1.24031046,118720.0,118710.0,0.42293636]
[1759387382023,1.24031046,118720.0,118710.0,0.03478]
[1759387384334,0.8521541,118720.0,118710.0,0.03478]
[1759387384526,1.24031046,118720.0,118710.0,0.03478]
[1759387384725,1.24031046,118720.0,118710.0,0.42293636]
[1759387385139,1.24031046,118720.0,118710.0,0.03478]
[1759387386634,0.8521541,118720.0,118710.0,0.03478]
[1759387386932,0.47735046,118720.0,118710.0,0.03478]
[1759387387235,0.8519541,118720.0,118710.0,0.03478]
[1759387387534,1.24011046,118720.0,118710.0,0.03478]
[1759387387932,0.0891891,118720.0,118710.0,1.21109272]
[1759387388126,0.0891891,118720.0,118710.0,0.43478]
[1759387388434,0.0891891,118720.0,118710.0,0.82293636]
[1759387389735,0.47734546,118720.0,118710.0,0.82293636]
[1759387389931,0.0891891,118720.0,118710.0,0.82293636]
[1759387390136,0.47734546,118720.0,118710.0,0.82293636]
[1759387390725,0.86550182,118720.0,118710.0,0.03478]
[1759387390927,0.0891891,118720.0,118710.0,0.03478]
[1759387391128,0.47734546,118720.0,118710.0,0.03478]
[1759387392036,0.0891891,118720.0,118710.0,0.03478]
[1759387392237,0.86550182,118720.0,118710.0,0.03478]
[1759387393231,0.47734546,118720.0,118710.0,0.03478]
[1759387393436,1.24074546,118720.0,118710.0,0.42293636]
[1759387394237,0.8525891,118720.0,118710.0,0.03478]
[1759387394439,1.24074546,118720.0,118710.0,0.03478]
[1759387395242,0.8525091,118720.0,118710.0,0.42293636]
[1759387395633,1.24066546,118720.0,118710.0,0.42293636]
[1759387396243,1.24066546,118720.0,118710.0,0.03478]
[1759387396741,1.62882182,118720.0,118710.0,0.03478]
[1759387396937,0.0841963,118710.0,118700.0,0.09541784]
[1759387397243,0.86050902,118710.0,118700.0,0.03513]
[1759387397641,0.47235266,118710.0,118700.0,0.0139]
[1759387397840,0.47235266,118710.0,118700.0,0.03513]
[1759387398341,0.0861963,118710.0,118700.0,0.03513]
[1759387398542,0.47635266,118710.0,118700.0,0.03513]
[1759387399637,0.0881963,118710.0,118700.0,0.03513]
[1759387399840,0.47635266,118710.0,118700.0,0.03513]
[1759387401142,0.0881963,118710.0,118700.0,0.03513]
[1759387401643,0.47635266,118710.0,118700.0,0.03513]
[1759387401841,0.0842034,118700.0,118690.0,0.06028784]
[1759387402033,0.0842034,118700.0,118680.0,0.09581784]
[1759387402034,0.0842105,118690.0,118680.0,0.09581784]
[1759387402233,0.0842105,118690.0,118680.0,0.03553]
[1759387402539,0.47236686,118690.0,118680.0,0.09581784]
[1759387402746,0.47236686,118690.0,118680.0,0.03553]
[1759387403841,0.47236686,118690.0,118680.0,0.42368636]
[1759387404037,0.0842105,118690.0,118680.0,0.42368636]
[1759387404238,0.0842105,118690.0,118680.0,0.03553]
[1759387404438,0.0842105,118690.0,118680.0,0.03953]
[1759387406335,0.15104041,118690.0,118680.0,0.03953]
[1759387406733,0.91416041,118690.0,118680.0,0.03953]
[1759387407234,0.15104041,118690.0,118680.0,0.42764767]
[1759387407430,0.91416041,118690.0,118680.0,0.42764767]
[1759387407945,0.91416041,118690.0,118680.0,0.03953]
[1759387408140,0.91416041,118690.0,118680.0,0.42764767]
[1759387408831,0.91416041,118690.0,118680.0,0.03953]
[1759387409040,0.15104041,118690.0,118680.0,0.42764767]
[1759387409437,0.84688041,118690.0,118680.0,0.42764767]
[1759387411044,0.84688041,118690.0,118680.0,0.03953]
[1759387411242,0.84688041,118690.0,118680.0,0.42764767]
[1759387411836,0.84688041,118690.0,118680.0,0.03953]
[1759387412033,0.84688041,118690.0,118680.0,0.42764767]
[1759387412237,0.84688041,118690.0,118680.0,0.01755]
[1759387412443,0.84688041,118690.0,118680.0,0.03953]
[1759387413043,1.23499808,118690.0,118680.0,0.03953]
[1759387414344,0.84688041,118690.0,118680.0,0.03953]
[1759387415446,0.15104041,118690.0,118680.0,0.03953]
[1759387415657,0.91400041,118690.0,118680.0,0.03953]
[1759387426450,0.91400041,118690.0,118680.0,0.09981784]
[1759387433360,0.15104041,118690.0,118680.0,0.42764767]
[1759387433550,0.91340041,118690.0,118680.0,0.42764767]
[1759387436657,1.30151808,118690.0,118680.0,0.03953]
[1759387436859,0.91340041,118690.0,118680.0,0.03953]
[1759387437860,1.30151808,118690.0,118680.0,0.09988416]
[1759387438661,1.30151808,118690.0,118680.0,0.03953]
[1759387438964,1.30151808,118690.0,118680.0,0.09988318]
[1759387439265,1.30151808,118690.0,118680.0,0.03953]
[1759387439463,1.30151808,118690.0,118680.0,0.09988237]
[1759387440160,0.91340041,118690.0,118680.0,0.09988237]
[1759387440360,0.91340041,118690.0,118680.0,0.03953]
[1759387440562,1.30151808,118690.0,118680.0,0.0998837]
[1759387441262,1.30151808,118690.0,118680.0,0.03953]
[1759387441461,0.53915808,118690.0,118680.0,0.03953]
[1759387441662,1.30147808,118690.0,118680.0,0.03953]
[1759387441963,0.91336041,118690.0,118680.0,0.03953]
[1759387443468,0.15104041,118690.0,118680.0,0.03953]
[1759387443665,0.91336041,118690.0,118680.0,0.03953]
[1759387444666,0.15104041,118690.0,118680.0,0.03953]
[1759387444869,0.91324041,118690.0,118680.0,0.03953]
[1759387445772,0.91324041,118690.0,118680.0,0.0998837]
[1759387447468,0.91324041,118690.0,118680.0,0.11685047]
[1759387454669,1.30135808,118690.0,118680.0,0.11685047]
[1759387454969,0.91324041,118690.0,118680.0,0.11685047]
[1759387457978,0.91324041,118690.0,118680.0,0.50496814]
[1759387458171,0.91324041,118690.0,118680.0,0.50497154]
[1759387458884,0.91324041,118690.0,118680.0,0.11693387]
[1759387459079,1.30135808,118690.0,118680.0,0.11693387]
[1759387459269,0.91324041,118690.0,118680.0,0.11693387]
[1759387459772,1.30135808,118690.0,118680.0,0.11693387]
[1759387460467,1.30135808,118690.0,118680.0,0.11293387]
[1759387460668,1.30135808,118690.0,118680.0,0.11693387]
[1759387460977,1.30135808,118690.0,118680.0,0.11293387]
[1759387461277,1.30135808,118690.0,118680.0,0.11393387]
[1759387461780,1.30135808,118690.0,118680.0,0.11693387]
[1759387462374,1.30135808,118690.0,118680.0,0.11293387]
[1759387462575,1.30135808,118690.0,118680.0,0.11393387]
[1759387462977,0.91324041,118690.0,118680.0,0.11393387]
[1759387463174,1.30135808,118690.0,118680.0,0.11393387]
[1759387463778,0.91324041,118690.0,118680.0,0.11393387]
[1759387463979,1.30135808,118690.0,118680.0,0.11393387]
[1759387464383,1.30135436,118690.0,118680.0,0.50204782]
[1759387464680,1.30135436,118690.0,118680.0,0.11393387]
[1759387464881,0.91324041,118690.0,118680.0,0.11393387]
[1759387465182,1.30135436,118690.0,118680.0,0.11393387]
[1759387470276,0.91324041,118690.0,118680.0,0.11393387]
[1759387470480,1.30135436,118690.0,118680.0,0.11393387]
[1759387472084,0.53915436,118690.0,118680.0,0.11393387]
[1759387472273,1.30131436,118690.0,118680.0,0.50204782]
[1759387473488,0.91320041,118690.0,118680.0,0.50204782]
[1759387473685,1.30131436,118690.0,118680.0,0.50204782]
[1759387475787,1.30131436,118690.0,118680.0,0.46643782]
[1759387475987,2.08942831,118690.0,118680.0,0.0266604]
[1759387476289,0.0842256,118670.0,118660.0,0.42437395]
[1759387476483,1.23449955,118670.0,118660.0,0.44138577]
[1759387476689,1.23449955,118670.0,118660.0,0.05327182]
[1759387477185,1.23449955,118670.0,118660.0,0.44138577]
[1759387477488,1.23449955,118670.0,118660.0,0.06027182]
[1759387477690,1.23449955,118670.0,118660.0,0.44838577]
[1759387477890,1.23449955,118670.0,118660.0,0.51690219]
[1759387477891,1.22438929,118670.0,118660.0,0.51690219]
[1759387478092,1.22438929,118670.0,118660.0,0.52390219]
[1759387478687,1.22438929,118670.0,118660.0,0.13578824]
[1759387478888,1.22438929,118670.0,118660.0,0.44838577]
[1759387479195,1.24328088,118670.0,118660.0,0.44838577]
[1759387479982,0.85516693,118670.0,118660.0,0.44838577]
[1759387480183,0.85516693,118670.0,118660.0,0.06027182]
[1759387480579,1.24328088,118670.0,118660.0,0.44838577]
[1759387481001,0.09300693,118670.0,118660.0,0.14450552]
[1759387481294,0.52413159,118670.0,118660.0,1.00891035]
[1759387481588,0.78105159,118670.0,118660.0,1.00891035]
[1759387481788,0.76216,118670.0,118660.0,1.00891035]
[1759387482293,0.78138532,118670.0,118660.0,1.00891035]
[1759387482887,0.01922532,118670.0,118660.0,1.00891035]
[1759387483089,0.76216,118670.0,118660.0,1.00891035]
[1759387483895,0.8463866,118670.0,118660.0,1.00891035]
[1759387485196,0.0842266,118670.0,118660.0,1.00891035]
[1759387485497,0.7241466,118670.0,118660.0,1.00891035]
[1759387486782,0.74311284,118670.0,118660.0,1.00891035]
[1759387486987,0.15104251,118690.0,118680.0,0.03615]
[1759387487189,0.8464126,118690.0,118680.0,0.42426395]
[1759387487788,1.23452655,118690.0,118680.0,0.42426395]
[1759387487993,0.49133856,118690.0,118680.0,0.42426395]
[1759387488194,1.25353856,118690.0,118680.0,0.42426395]
[1759387488394,0.49133856,118690.0,118680.0,0.42526395]
[1759387488593,1.25353856,118690.0,118680.0,0.42526395]
[1759387489298,0.49133856,118690.0,118680.0,0.42526395]
[1759387489597,1.25349856,118690.0,118680.0,0.42526395]
[1759387490699,1.32030153,118690.0,118680.0,0.42526395]
[1759387491100,0.93218758,118690.0,118680.0,0.42526395]
[1759387491294,1.32030153,118690.0,118680.0,0.42526395]
[1759387493406,0.55814153,118690.0,118680.0,0.50948365]
[1759387493700,1.32030153,118690.0,118680.0,0.50948365]
[1759387494599,0.17002758,118690.0,118680.0,0.50948365]
[1759387494804,0.93218758,118690.0,118680.0,0.8975976]
[1759387494996,0.93218758,118690.0,118680.0,0.50948365]
[1759387495599,0.93218758,118690.0,118680.0,0.8975976]
[1759387496012,0.93218758,118690.0,118680.0,0.50948365]
[1759387496214,1.32030153,118690.0,118680.0,0.50948365]
[1759387496910,0.93218758,118690.0,118680.0,0.8975976]
[1759387497109,0.93218758,118690.0,118680.0,0.60309509]
[1759387497913,0.93218758,118690.0,118680.0,0.99120904]
[1759387499311,0.17002758,118690.0,118680.0,0.99120904]
[1759387499613,0.93214758,118690.0,118680.0,0.99120904]
[1759387499804,0.93214758,118690.0,118680.0,0.90698934]
[1759387500713,0.93214758,118690.0,118680.0,0.13076144]
[1759387501011,1.32026153,118690.0,118680.0,0.13076144]
[1759387501211,0.93214758,118690.0,118680.0,0.51887539]
[1759387501414,0.93214758,118690.0,118680.0,0.13076144]
[1759387501415,1.32026153,118690.0,118680.0,0.13076144]
[1759387501620,1.32026153,118690.0,118680.0,0.51887539]
[1759387501913,1.32026153,118690.0,118680.0,0.03715]
[1759387502307,1.32026153,118690.0,118680.0,0.014]